bitfinex-derivatives/quotes_BTCF0:USTF0_20251225
["timestamp","ask_amount","ask_price","bid_price","bid_amount"]
[1766687897746,0.05676,88261.0,88248.0,0.0113396]
[1766687908049,0.07716284,88260.0,88248.0,0.0113396]
[1766687922466,0.07716284,88260.0,88242.0,0.05676]
[1766687922666,0.07716284,88260.0,88242.0,0.08676]
[1766687924467,0.07716284,88260.0,88247.0,0.0113397]
[1766687925974,0.07716284,88260.0,88249.0,0.0113394]
[1766687926268,0.13824348,88260.0,88249.0,0.0113394]
[1766687926770,0.06108064,88260.0,88249.0,0.0113394]
[1766687929372,0.13824348,88260.0,88249.0,0.0113394]
[1766687935883,0.06108064,88260.0,88249.0,0.0113394]
[1766687936072,0.05676,88261.0,88249.0,0.0113394]
[1766687937576,0.05676,88261.0,88242.0,0.05676]
[1766687937881,0.05676,88264.0,88252.0,0.011339]
[1766687946295,0.01017001,88266.0,88248.0,0.0964]
[1766687946502,0.01017001,88266.0,88258.0,0.0113383]
[1766687947400,0.01017001,88266.0,88255.0,0.0113386]
[1766687948505,0.01017001,88266.0,88252.0,0.04326861]
[1766687948696,0.01017001,88266.0,88252.0,0.07326861]
[1766687949409,0.01017001,88266.0,88255.0,0.0113386]
[1766687952706,0.01017001,88266.0,88252.0,0.05460761]
[1766687952906,0.01017001,88266.0,88252.0,0.08460761]
[1766687953597,0.01017001,88266.0,88252.0,0.05460761]
[1766687954896,0.01017001,88266.0,88254.0,0.0113388]
[1766687955614,0.01017001,88266.0,88252.0,0.03860741]
[1766687956299,0.01017001,88266.0,88254.0,0.0113388]
[1766687957508,0.02150731,88266.0,88252.0,0.03860741]
[1766687958199,0.02150731,88266.0,88253.0,0.0113389]
[1766687958399,0.01017001,88266.0,88253.0,0.0113389]
[1766687968914,0.0113374,88265.0,88252.0,0.03860741]
[1766687969311,0.0113374,88265.0,88252.0,0.04994641]
[1766687971127,0.01017001,88266.0,88252.0,0.04994641]
[1766687972326,0.01017001,88266.0,88254.0,0.0113388]
[1766687972718,0.01017001,88266.0,88252.0,0.03494621]
[1766687973224,0.01017001,88266.0,88254.0,0.0113388]
[1766687976430,0.07125065,88266.0,88254.0,0.0113388]
[1766687979733,0.07125065,88266.0,88252.0,0.03128501]
[1766687979940,0.08258795,88266.0,88252.0,0.03128501]
[1766687980726,0.07125065,88266.0,88252.0,0.03128501]
[1766687981123,0.0113382,88259.0,88252.0,0.03128501]
[1766687982222,0.05676,88261.0,88241.0,0.0113404]
[1766687982427,0.05676,88261.0,88238.0,0.05676]
[1766687982630,0.0113385,88257.0,88238.0,0.07676]
[1766687983427,0.0113385,88257.0,88239.0,0.00017001]
[1766687983621,0.0113385,88257.0,88239.0,0.03017001]
[1766687984229,0.0113387,88255.0,88240.0,0.0113406]
[1766687984436,0.0113391,88252.0,88239.0,0.00017001]
[1766687984731,0.0680979,88261.0,88239.0,0.03017001]
[1766687985119,0.0113393,88251.0,88239.0,0.03017001]
[1766687993939,0.0680979,88261.0,88239.0,0.03017001]
[1766687993940,0.0113389,88254.0,88239.0,0.03017001]
[1766687997643,0.0113389,88254.0,88240.0,0.0113405]
[1766687997845,0.0113389,88254.0,88240.0,0.0413405]
[1766688001250,0.0113385,88257.0,88240.0,0.03]
[1766688001741,0.05676,88261.0,88240.0,0.03]
[1766688001742,0.0680979,88261.0,88246.0,0.0113397]
[1766688001947,0.0680979,88261.0,88243.0,0.0113401]
[1766688001948,0.0113385,88257.0,88243.0,0.0113401]
[1766688002745,0.0113382,88260.0,88243.0,0.0113401]
[1766688002934,0.05676,88261.0,88243.0,0.0113401]
[1766688002935,0.0113383,88258.0,88243.0,0.0113401]
[1766688004447,0.0113383,88258.0,88239.0,0.00017001]
[1766688004747,0.0113383,88258.0,88239.0,0.03017001]
[1766688006451,0.0113383,88258.0,88243.0,0.0113402]
[1766688006747,0.0113383,88258.0,88243.0,0.0413402]
[1766688008853,0.01017001,88266.0,88243.0,0.03]
[1766688009449,0.0113376,88264.0,88248.0,0.0113395]
[1766688009748,0.0113376,88264.0,88249.0,0.05676]
[1766688011545,0.0113376,88264.0,88250.0,0.0113393]
[1766688011753,0.01017001,88266.0,88250.0,0.0113393]
[1766688012353,0.0113374,88265.0,88250.0,0.0113393]
[1766688018859,0.06108064,88264.0,88250.0,0.0113393]
[1766688019244,0.06108064,88264.0,88249.0,0.05676]
[1766688019559,0.1077368,88270.0,88249.0,0.08676]
[1766688019953,0.011337,88268.0,88250.0,0.05676]
[1766688020155,0.011337,88268.0,88251.0,0.0964]
[1766688020465,0.01150701,88268.0,88251.0,0.1164]
[1766688020660,0.01150701,88268.0,88252.0,0.0113391]
[1766688021865,0.01150701,88268.0,88251.0,0.0907391]
[1766688022065,0.01150701,88268.0,88251.0,0.1107391]
[1766688022265,0.01150701,88268.0,88252.0,0.0113391]
[1766688023965,0.01150701,88268.0,88254.0,0.0113388]
[1766688024866,0.0113373,88266.0,88251.0,0.1020782]
[1766688025051,0.0113373,88266.0,88251.0,0.1220782]
[1766688026562,0.0113373,88266.0,88253.0,0.0113389]
[1766688028863,0.0113373,88266.0,88251.0,0.0907391]
[1766688029068,0.0113373,88266.0,88251.0,0.105078]
[1766688030269,0.0113373,88266.0,88253.0,0.0113389]
[1766688030669,0.0113373,88266.0,88250.0,0.0113392]
[1766688030871,0.0113373,88266.0,88252.0,0.011339]
[1766688032270,0.0113375,88264.0,88251.0,0.05676]
[1766688032476,0.0113375,88264.0,88251.0,0.07676]
[1766688032770,0.011338,88261.0,88252.0,0.05676]
[1766688032962,0.011338,88261.0,88252.0,0.04176]
[1766688033162,0.0113382,88259.0,88252.0,0.04176]
[1766688033661,0.07714329,88262.0,88249.0,0.05676]
[1766688035265,0.0113383,88259.0,88249.0,0.05676]
[1766688038262,0.0113379,88262.0,88249.0,0.05676]
[1766688056286,0.011338,88260.0,88249.0,0.05676]
[1766688056781,0.0113373,88267.0,88249.0,0.05676]
[1766688058383,0.0113383,88259.0,88249.0,0.05676]
[1766688059087,0.0113384,88257.0,88249.0,0.05676]
[1766688059267,0.07714329,88260.0,88249.0,0.05676]
[1766688059471,0.0113389,88254.0,88246.0,0.05676]
[1766688062273,0.0113389,88254.0,88243.0,0.0964]
[1766688062581,0.0113389,88254.0,88243.0,0.1264]
[1766688064281,0.0113385,88257.0,88243.0,0.1264]
[1766688067086,0.0113387,88255.0,88243.0,0.1264]
[1766688078597,0.0113396,88249.0,88243.0,0.03]
[1766688081796,0.13638011,88267.0,88243.0,0.03]
[1766688082004,0.05,90795.0,88260.0,0.011338]
[1766688082005,0.04923983,88289.0,88260.0,0.011338]
[1766688082305,0.00226469,88313.0,88261.0,0.43490094]
[1766688082501,0.07714329,88310.0,88282.0,0.0113351]
[1766688082691,0.08847499,88310.0,88283.0,0.15316]
[1766688082891,0.07714329,88300.0,88283.0,0.03]
[1766688083104,0.07714329,88300.0,88288.0,0.00016991]
[1766688084008,0.07714329,88300.0,88271.0,0.03052175]
[1766688084202,0.07714329,88300.0,88272.0,0.15316]
[1766688084401,0.07714329,88300.0,88272.0,0.18316]
[1766688084603,0.07714329,88290.0,88273.0,0.0113363]
[1766688084903,0.07714329,88290.0,88273.0,0.04150621]
[1766688087016,0.0113328,88302.0,88273.0,0.04150621]
[1766688087221,0.07714329,88290.0,88273.0,0.04150621]
[1766688089412,0.07714329,88290.0,88277.0,0.0113358]
[1766688089618,0.07714329,88290.0,88278.0,0.05676]
[1766688089820,0.07714329,88290.0,88278.0,0.08676]
[1766688090518,0.0113328,88302.0,88278.0,0.08676]
[1766688090717,0.01,88342.0,88285.0,0.03040443]
[1766688091027,0.01,88342.0,88322.0,0.01133]
[1766688091214,1e-07,88342.0,88327.0,0.0113294]
[1766688091409,4.02e-06,88343.0,88335.0,0.0113284]
[1766688091618,4.02e-06,88343.0,88337.0,0.0113282]
[1766688091908,0.0568,88366.0,88339.0,0.0113279]
[1766688092106,0.0568,88366.0,88340.0,0.0568]
[1766688092309,0.0568,88366.0,88341.0,0.0113275]
[1766688092617,0.09636,88371.0,88341.0,0.0113275]
[1766688092807,0.09636,88371.0,88346.0,0.0113269]
[1766688093123,0.00016981,88364.0,88349.0,0.00016981]
[1766688093416,0.00016981,88364.0,88349.0,0.02016981]
[1766688094211,0.00016981,88364.0,88350.0,0.0113264]
[1766688094408,0.01,88380.0,88350.0,0.03]
[1766688094620,0.01,88380.0,88351.0,0.15316]
[1766688094926,0.0213227,88380.0,88351.0,0.18316]
[1766688095319,0.00011259,88369.0,88351.0,0.18316]
[1766688098712,0.00011259,88369.0,88351.0,0.03]
[1766688098919,0.00011259,88369.0,88352.0,0.15308]
[1766688099120,0.00011259,88369.0,88352.0,0.18308]
[1766688101228,0.00011259,88369.0,88352.0,0.03]
[1766688101530,0.0113243,88368.0,88353.0,0.05676]
[1766688101920,0.0113249,88363.0,88349.0,0.00016981]
[1766688102224,0.0113259,88355.0,88343.0,0.05676]
[1766688102630,0.0113253,88360.0,88343.0,0.05676]
[1766688103225,0.01149511,88360.0,88343.0,0.05692981]
[1766688105723,0.0113257,88357.0,88343.0,0.05692981]
[1766688106426,0.0113257,88357.0,88343.0,0.05676]
[1766688109728,0.011326,88354.0,88343.0,0.05676]
[1766688109935,0.00016981,88360.0,88343.0,0.05676]
[1766688110233,0.0113255,88358.0,88343.0,0.05676]
[1766688110436,0.00016981,88360.0,88343.0,0.05676]
[1766688110626,0.00016981,88360.0,88344.0,0.05676]
[1766688114333,0.0113257,88356.0,88344.0,0.05676]
[1766688114744,0.0113261,88354.0,88341.0,0.09648981]
[1766688115038,0.0113263,88352.0,88337.0,0.03040443]
[1766688115236,0.0113263,88352.0,88338.0,0.15308]
[1766688116540,0.0113263,88352.0,88339.0,0.06442146]
[1766688116740,0.0113263,88352.0,88340.0,0.05676]
[1766688117340,0.0113263,88352.0,88340.0,0.08716443]
[1766688117942,0.00226392,88343.0,88340.0,0.08716443]
[1766688118142,0.0113263,88352.0,88340.0,0.08716443]
[1766688118340,0.0113263,88352.0,88342.0,0.03040443]
[1766688118643,0.00016981,88360.0,88340.0,0.08716443]
[1766688118831,0.0113267,88349.0,88338.0,0.05676]
[1766688119443,0.0113263,88352.0,88338.0,0.05676]
[1766688120355,0.0113263,88352.0,88339.0,0.03222578]
[1766688120537,0.0113263,88352.0,88339.0,0.00736]
[1766688120939,0.00016981,88360.0,88340.0,0.03222462]
[1766688121248,0.0113243,88368.0,88351.0,0.0113263]
[1766688121444,0.00022632,88370.0,88350.0,0.05676]
[1766688121640,0.00022632,88370.0,88351.0,0.05676]
[1766688121838,0.00022632,88370.0,88352.0,0.0680862]
[1766688122248,0.00039613,88370.0,88352.0,0.0680862]
[1766688122649,0.0113242,88369.0,88352.0,0.0680862]
[1766688122843,0.00039613,88370.0,88354.0,0.0113259]
[1766688123038,0.00039613,88370.0,88355.0,0.03221128]
[1766688123237,0.00039613,88370.0,88356.0,0.03221128]
[1766688123440,0.00039613,88370.0,88354.0,0.01149571]
[1766688130052,0.01172013,88370.0,88354.0,0.01149571]
[1766688131052,0.0113243,88368.0,88354.0,0.00016981]
[1766688131251,0.0113246,88365.0,88354.0,0.00016981]
[1766688133456,0.0113246,88365.0,88350.0,0.05672]
[1766688133853,0.0113249,88363.0,88350.0,0.05672]
[1766688137046,0.0113249,88363.0,88351.0,0.00736]
[1766688140261,0.00039613,88370.0,88350.0,0.05672]
[1766688140262,0.0113254,88359.0,88350.0,0.05672]
[1766688140561,0.0113262,88353.0,88344.0,0.05672]
[1766688141257,0.0113266,88350.0,88332.0,0.0113287]
[1766688141560,0.01149641,88350.0,88334.0,0.0113285]
[1766688141747,0.01149641,88350.0,88334.0,0.0413285]
[1766688142153,0.00016981,88350.0,88334.0,0.0413285]
[1766688142369,0.00016981,88350.0,88336.0,0.0113282]
[1766688142661,0.00016981,88350.0,88338.0,0.0113279]
[1766688142862,0.00016981,88350.0,88338.0,0.0213279]
[1766688149164,0.00016981,88350.0,88338.0,0.01]
[1766688150177,0.01149631,88350.0,88338.0,0.01]
[1766688156475,0.0113268,88348.0,88338.0,0.01]
[1766688156677,0.011327,88346.0,88333.0,0.153]
[1766688156877,0.011327,88346.0,88333.0,0.183]
[1766688158787,0.07717304,88350.0,88333.0,0.03]
[1766688158788,0.07700323,88343.0,88333.0,0.03]
[1766688159079,0.0113284,88336.0,88313.0,0.00226469]
[1766688159271,0.0113268,88348.0,88314.0,0.153]
[1766688159578,0.0113278,88340.0,88324.0,0.0113298]
[1766688159774,0.0113275,88343.0,88326.0,0.0113295]
[1766688159974,0.0113275,88343.0,88326.0,0.01149931]
[1766688160871,0.0113275,88343.0,88328.0,0.0113293]
[1766688161073,0.0113271,88346.0,88328.0,0.0113293]
[1766688161278,0.09644981,88350.0,88334.0,0.0113284]
[1766688161574,0.10777631,88350.0,88334.0,0.0113284]
[1766688161876,0.18477954,88350.0,88334.0,0.0113284]
[1766688163374,0.10777631,88350.0,88334.0,0.0113284]
[1766688163581,0.09644981,88350.0,88336.0,0.0113282]
[1766688165572,0.00016981,88350.0,88336.0,0.0113282]
[1766688168186,0.00016981,88350.0,88336.0,0.1643682]
[1766688175072,0.00016981,88350.0,88338.0,0.011328]
[1766688175480,0.0113251,88361.0,88340.0,0.07700323]
[1766688175681,0.0113251,88361.0,88340.0,0.10700323]
[1766688176589,0.00016981,88359.0,88340.0,0.10700323]
[1766688177277,0.00016981,88359.0,88344.0,0.0113272]
[1766688177481,0.01149521,88359.0,88345.0,0.05672]
[1766688178585,0.00022632,88370.0,88345.0,0.05672]
[1766688178586,0.00022632,88370.0,88357.0,0.0113255]
[1766688180582,3.15e-06,88373.0,88365.0,0.0113245]
[1766688180784,3.15e-06,88373.0,88365.0,0.05672]
[1766688190500,3.15e-06,88373.0,88365.0,0.0680445]
[1766688191597,3.15e-06,88373.0,88365.0,0.05672]
[1766688195607,3.15e-06,88373.0,88361.0,0.011325]
[1766688195804,3.15e-06,88373.0,88362.0,0.153]
[1766688196102,3.15e-06,88373.0,88362.0,0.183]
[1766688196286,3.15e-06,88373.0,88363.0,0.0113248]
[1766688196492,3.15e-06,88373.0,88364.0,0.05672]
[1766688196800,3.15e-06,88373.0,88364.0,0.02]
[1766688196988,3.15e-06,88373.0,88365.0,0.153]
[1766688197789,3.15e-06,88373.0,88366.0,0.05672]
[1766688197989,3.15e-06,88373.0,88359.0,0.0113252]
[1766688198208,3.15e-06,88373.0,88360.0,0.153]
[1766688198390,3.15e-06,88373.0,88360.0,0.183]
[1766688198790,0.01132675,88373.0,88360.0,0.183]
[1766688199708,0.0113239,88371.0,88360.0,0.183]
[1766688200393,3.15e-06,88373.0,88360.0,0.183]
[1766688200597,0.0113237,88372.0,88360.0,0.183]
[1766688200994,0.08832723,88370.0,88360.0,0.153]
[1766688201195,0.08832723,88370.0,88360.0,0.15020914]
[1766688201604,0.01132675,88373.0,88360.0,0.15020914]
[1766688204805,0.0113239,88371.0,88360.0,0.15020914]
[1766688206006,0.0113239,88371.0,88359.0,0.05672]
[1766688206204,0.0113239,88371.0,88359.0,0.07672]
[1766688209412,3.15e-06,88373.0,88359.0,0.02]
[1766688209617,0.07700323,88370.0,88359.0,0.02]
[1766688210428,0.07700323,88370.0,88359.0,0.01]
[1766688210630,0.08832723,88370.0,88359.0,0.01]
[1766688213933,0.011324,88370.0,88359.0,0.01]
[1766688215140,0.0113255,88358.0,88344.0,0.03047111]
[1766688215328,0.0113255,88358.0,88344.0,0.03]
[1766688215638,0.0113254,88359.0,88344.0,0.03]
[1766688215840,0.0113254,88359.0,88345.0,0.153]
[1766688216032,0.0113254,88359.0,88345.0,0.183]
[1766688223351,0.0113256,88357.0,88345.0,0.183]
[1766688223738,0.0113256,88357.0,88345.0,0.03]
[1766688224147,0.0113256,88357.0,88346.0,0.05672]
[1766688224347,0.0113256,88357.0,88346.0,0.08672]
[1766688228048,0.0113264,88351.0,88346.0,0.03]
[1766688228246,0.0113264,88351.0,88347.0,0.05672]
[1766688228444,0.0113261,88354.0,88347.0,0.06344374]
[1766688230041,0.0113263,88352.0,88347.0,0.06344374]
[1766688230246,0.0113263,88352.0,88347.0,0.03344374]
[1766688234750,0.0113265,88350.0,88343.0,0.00016981]
[1766688234940,0.011327,88346.0,88335.0,0.05672]
[1766688235146,0.011327,88346.0,88335.0,0.01]
[1766688235147,0.0113271,88346.0,88335.0,0.01]
[1766688236450,0.0113283,88336.0,88332.0,0.00016981]
[1766688236647,0.011328,88339.0,88332.0,0.03016981]
[1766688237052,0.0113276,88342.0,88332.0,0.03016981]
[1766688238746,0.0113276,88342.0,88332.0,0.00016981]
[1766688241360,0.0113276,88342.0,88333.0,0.01132]
[1766688242061,0.0113278,88340.0,88333.0,0.01132]
[1766688242854,0.0113281,88338.0,88333.0,0.01132]
[1766688247152,0.0113277,88341.0,88333.0,0.01132]
[1766688247858,0.0113279,88339.0,88333.0,0.01132]
[1766688253071,0.0113282,88337.0,88332.0,0.00016981]
[1766688254170,0.0113285,88335.0,88332.0,1e-08]
[1766688255658,0.0113281,88338.0,88332.0,1e-08]
[1766688262975,0.0113288,88332.0,88323.0,0.09628]
[1766688263276,0.0113294,88328.0,88323.0,0.12628]
[1766688263679,0.011329,88331.0,88323.0,0.12628]
[1766688264781,0.011329,88331.0,88323.0,0.03]
[1766688266085,0.01200532,88334.0,88315.0,0.03047111]
[1766688266283,0.15304,88333.0,88302.0,0.03047111]
[1766688266480,0.0113305,88319.0,88302.0,0.03]
[1766688266691,0.15304,88333.0,88305.0,0.0113322]
[1766688266983,0.01241205,88334.0,88310.0,0.0113315]
[1766688266984,0.15304,88332.0,88310.0,0.0113315]
[1766688267176,0.00016981,88330.0,88311.0,0.05672]
[1766688267485,9.727e-05,88329.0,88311.0,0.08672]
[1766688268774,0.01142657,88329.0,88311.0,0.08672]
[1766688271986,0.0113295,88327.0,88311.0,0.08672]
[1766688275589,0.0113298,88325.0,88311.0,0.08672]
[1766688279286,0.0113305,88319.0,88311.0,0.08672]
[1766688279484,0.0113302,88322.0,88311.0,0.08672]
[1766688280983,0.0113302,88322.0,88298.0,0.01]
[1766688280984,0.011331,88315.0,88298.0,0.01]
[1766688281287,0.00011897,88314.0,88298.0,0.04]
[1766688281476,0.00011897,88314.0,88302.0,0.0113325]
[1766688281683,0.00011897,88314.0,88302.0,0.0980525]
[1766688283881,0.00011897,88314.0,88302.0,0.08672]
[1766688288099,0.00011897,88314.0,88302.0,0.0980526]
[1766688288687,0.10765,88323.0,88306.0,0.011332]
[1766688289594,0.0113303,88321.0,88306.0,0.011332]
[1766688289798,0.0113303,88321.0,88303.0,0.0113325]
[1766688289994,0.0113303,88321.0,88303.0,0.0413325]
[1766688290797,0.0113303,88321.0,88305.0,0.0113322]
[1766688291184,0.0113305,88319.0,88302.0,0.0680526]
[1766688291396,0.0113308,88317.0,88302.0,0.0980526]
[1766688294197,0.0113313,88313.0,88302.0,0.08672]
[1766688295197,0.15304,88325.0,88302.0,0.08672]
[1766688295198,0.0113315,88311.0,88302.0,0.08672]
[1766688295989,0.0113315,88311.0,88302.0,0.03]
[1766688296186,0.0113315,88311.0,88302.0,0.08672]
[1766688296598,0.07703763,88312.0,88298.0,0.01]
[1766688296894,0.07703763,88312.0,88299.0,0.05672]
[1766688297096,0.0113319,88309.0,88299.0,0.08672]
[1766688297786,0.07703763,88312.0,88299.0,0.08672]
[1766688297987,0.06105573,88315.0,88299.0,0.08672]
[1766688298197,0.0113313,88313.0,88299.0,0.08672]
[1766688301205,0.0113313,88313.0,88299.0,0.03]
[1766688301390,0.011332,88307.0,88299.0,0.02988103]
[1766688301591,0.0113325,88303.0,88285.0,0.0113347]
[1766688301797,0.07703763,88300.0,88289.0,0.04132]
[1766688302693,0.0113322,88306.0,88289.0,0.04132]
[1766688303295,0.0113322,88306.0,88289.0,0.0526542]
[1766688305909,0.05672,88307.0,88291.0,0.011334]
[1766688306105,0.0113324,88305.0,88291.0,0.03]
[1766688306502,0.0113326,88303.0,88291.0,0.03]
[1766688306805,0.07703763,88301.0,88291.0,0.03]
[1766688310408,0.0113326,88303.0,88291.0,0.03]
[1766688310706,0.07703763,88301.0,88291.0,0.03]
[1766688313709,0.07703763,88301.0,88292.0,0.01132]
[1766688320016,0.0113326,88303.0,88292.0,0.01132]
[1766688320213,0.07703763,88302.0,88292.0,0.01132]
[1766688322617,0.05672,88307.0,88292.0,0.01132]
[1766688322618,0.0113322,88306.0,88292.0,0.01132]
[1766688323129,0.0113322,88306.0,88293.0,0.0113338]
[1766688335038,0.05672,88307.0,88293.0,0.0113338]
[1766688335241,0.0680521,88307.0,88293.0,0.0113338]
[1766688336639,0.06105573,88304.0,88293.0,0.0113338]
[1766688339841,0.06105573,88304.0,88294.0,0.01132]
[1766688343246,0.06105573,88304.0,88295.0,0.0113335]
[1766688343544,0.06105573,88304.0,88294.0,0.01132]
[1766688343841,0.00016981,88312.0,88294.0,0.01132]
[1766688344047,0.00016981,88312.0,88302.0,0.0113325]
[1766688346240,0.00016981,88312.0,88299.0,0.011333]
[1766688346442,0.00016981,88312.0,88294.0,0.01132]
[1766688346642,0.0113323,88305.0,88296.0,0.03872]
[1766688346845,0.0113319,88308.0,88296.0,0.03872]
[1766688348236,0.00016981,88312.0,88299.0,0.011333]
[1766688348642,0.00016981,88312.0,88301.0,0.0113327]
[1766688350554,0.05672,88316.0,88303.0,0.0113325]
[1766688352150,0.05672,88316.0,88305.0,0.0113322]
[1766688353737,0.00016981,88318.0,88296.0,0.03522201]
[1766688353944,0.00016981,88318.0,88296.0,0.06522201]
[1766688355352,0.00016981,88318.0,88306.0,0.011332]
[1766688356354,0.00016981,88318.0,88308.0,0.0113318]
[1766688359957,0.0113298,88325.0,88310.0,0.0113315]
[1766688360148,0.01133,88323.0,88310.0,0.0113315]
[1766688360347,0.01133,88323.0,88307.0,0.0113319]
[1766688360547,0.01133,88323.0,88307.0,0.0413319]
[1766688360847,0.0113303,88321.0,88307.0,0.0413319]
[1766688361156,0.01149971,88324.0,88309.0,0.0113317]
[1766688361346,0.01149971,88324.0,88309.0,0.0413317]
[1766688361547,0.00016981,88324.0,88309.0,0.0413317]
[1766688363457,0.00016981,88324.0,88309.0,0.03]
[1766688363661,0.00016981,88324.0,88311.0,0.0113315]
[1766688365965,0.00016981,88324.0,88306.0,0.14958131]
[1766688366164,0.00016981,88324.0,88311.0,0.0113315]
[1766688372466,0.00016981,88324.0,88312.0,0.01132]
[1766688378057,0.01149971,88324.0,88312.0,0.01132]
[1766688386666,0.06113964,88318.0,88312.0,0.00023374]
[1766688387065,0.06113964,88318.0,88308.0,0.0113318]
[1766688387264,0.06113964,88318.0,88308.0,0.0413318]
[1766688389264,0.06113964,88317.0,88310.0,0.0113315]
[1766688395981,0.06113964,88318.0,88310.0,0.0113315]
[1766688396669,0.06113964,88322.0,88310.0,0.0113315]
[1766688397274,0.07246964,88323.0,88310.0,0.0113315]
[1766688398787,0.06113964,88323.0,88312.0,0.0113313]
[1766688398973,0.00016981,88324.0,88318.0,0.0113306]
[1766688399283,0.00016981,88324.0,88316.0,0.0113307]
[1766688400278,0.00016981,88324.0,88313.0,0.0113312]
[1766688402488,0.00016981,88324.0,88315.0,0.0113309]
[1766688402986,0.00016981,88324.0,88306.0,0.13491221]
[1766688403288,0.00016981,88324.0,88306.0,0.16491221]
[1766688405193,0.00016981,88324.0,88312.0,0.0113313]
[1766688410296,0.00016981,88324.0,88314.0,0.011331]
[1766688410998,0.00016981,88324.0,88311.0,0.082651]
[1766688411194,0.00016981,88324.0,88314.0,0.011331]
[1766688413704,0.00016981,88324.0,88316.0,0.0113308]
[1766688418001,0.00016981,88324.0,88314.0,0.05672]
[1766688418209,0.00016981,88324.0,88316.0,0.0113308]
[1766688420815,0.06119253,88328.0,88318.0,0.0113306]
[1766688421111,0.06119253,88329.0,88318.0,0.0113306]
[1766688421411,0.06119253,88329.0,88317.0,0.0113306]
[1766688421802,3e-08,88329.0,88326.0,0.0113295]
[1766688422008,0.0113277,88341.0,88326.0,0.0113295]
[1766688422198,0.10632,88342.0,88328.0,0.0113292]
[1766688422614,0.01,88342.0,88328.0,0.0113292]
[1766688425220,0.01,88342.0,88323.0,0.09181901]
[1766688426325,0.01,88342.0,88328.0,0.0113292]
[1766688426529,0.01,88342.0,88332.0,0.0113287]
[1766688427224,0.08122556,88356.0,88339.0,0.0113279]
[1766688427425,0.0113262,88353.0,88339.0,0.05672]
[1766688427627,0.07704564,88350.0,88339.0,0.05672]
[1766688428129,0.0113265,88351.0,88339.0,0.05672]
[1766688430523,0.01149581,88354.0,88339.0,0.05672]
[1766688431831,0.0113263,88352.0,88339.0,0.05672]
[1766688432427,0.0113263,88352.0,88339.0,0.03272]
[1766688436531,0.0113266,88350.0,88339.0,0.03272]
[1766688436930,0.08837224,88350.0,88339.0,0.03272]
[1766688437834,0.0113266,88350.0,88339.0,0.03272]
[1766688438733,0.00016981,88354.0,88339.0,0.03272]
[1766688438942,0.00016981,88354.0,88340.0,0.07704564]
[1766688439130,0.00016981,88354.0,88339.0,0.03272]
[1766688439635,0.00016981,88354.0,88340.0,0.00024]
[1766688440139,0.00016981,88354.0,88340.0,0.07728564]
[1766688440632,0.1582712,88370.0,88340.0,0.07728564]
[1766688440633,0.0113241,88369.0,88349.0,0.0113265]
[1766688440838,0.0113244,88367.0,88349.0,0.0113265]
[1766688441836,0.01149421,88367.0,88349.0,0.01149631]
[1766688443944,0.0113246,88365.0,88349.0,0.01149631]
[1766688444439,0.0113246,88365.0,88343.0,0.08581631]
[1766688444834,0.0113246,88365.0,88348.0,0.0113266]
[1766688445531,0.0113246,88365.0,88348.0,0.01149641]
[1766688450348,0.0113249,88363.0,88348.0,0.01149641]
[1766688450739,0.07704564,88360.0,88340.0,0.00024]
[1766688450941,0.07704564,88360.0,88341.0,0.0680476]
[1766688450942,0.0113258,88356.0,88341.0,0.0680476]
[1766688451140,0.0113258,88356.0,88341.0,0.0980476]
[1766688452244,0.09632,88361.0,88341.0,0.0980476]
[1766688452245,0.0113254,88359.0,88341.0,0.0980476]
[1766688456851,0.0113256,88357.0,88341.0,0.0980476]
[1766688458846,0.0113256,88357.0,88343.0,0.0113273]
[1766688461758,0.0113267,88349.0,88325.0,0.04053986]
[1766688461944,0.0113267,88349.0,88326.0,0.15304]
[1766688462252,0.0113267,88349.0,88334.0,0.0113285]
[1766688462458,0.0113267,88349.0,88335.0,0.05672]
[1766688462661,0.0113267,88349.0,88335.0,0.08672]
[1766688463453,0.0113267,88349.0,88335.0,0.05672]
[1766688466361,0.00016981,88351.0,88333.0,0.00016981]
[1766688466362,0.09632,88350.0,88333.0,0.00016981]
[1766688466558,0.011328,88339.0,88326.0,0.09632]
[1766688466866,0.15729648,88350.0,88326.0,0.09632]
[1766688467062,0.0113278,88341.0,88326.0,0.09632]
[1766688468160,0.0113278,88341.0,88324.0,0.05672]
[1766688468361,0.0113278,88341.0,88324.0,0.08672]
[1766688469768,0.0113278,88341.0,88324.0,0.0980498]
[1766688469966,0.09632,88350.0,88324.0,0.08672]
[1766688471270,0.0113269,88347.0,88329.0,0.0113291]
[1766688471479,0.0113269,88347.0,88324.0,0.0490491]
[1766688471675,0.0113269,88347.0,88324.0,0.0790491]
[1766688472169,0.0113269,88347.0,88331.0,0.0113289]
[1766688472368,0.0113268,88348.0,88331.0,0.0113289]
[1766688472971,0.0113271,88346.0,88331.0,0.0113289]
[1766688473165,0.05672,88345.0,88328.0,0.0113292]
[1766688477770,0.0113273,88344.0,88328.0,0.0113292]
[1766688477972,0.05672,88343.0,88328.0,0.0113292]
[1766688478674,0.05672,88343.0,88324.0,0.0443783]
[1766688478986,0.05672,88343.0,88324.0,0.0743783]
[1766688479176,0.05672,88343.0,88328.0,0.0113292]
[1766688481587,0.0113275,88342.0,88328.0,0.0113292]
[1766688482982,0.0113278,88340.0,88325.0,0.0113296]
[1766688483166,0.0113278,88340.0,88325.0,0.0413296]
[1766688489988,0.0113278,88340.0,88325.0,0.03]
[1766688490186,0.0113281,88338.0,88325.0,0.03]
[1766688490793,0.0113283,88336.0,88325.0,0.03]
[1766688492986,0.05672,88343.0,88325.0,0.03]
[1766688493188,0.05672,88343.0,88321.0,0.09632]
[1766688493380,0.05672,88343.0,88321.0,0.12632]
[1766688493884,0.0113281,88338.0,88321.0,0.12632]
[1766688494100,0.0113281,88338.0,88322.0,0.01133]
[1766688494408,0.05672,88341.0,88322.0,0.03]
[1766688494602,0.05672,88341.0,88329.0,0.0113291]
[1766688494800,0.05672,88341.0,88326.0,0.0113295]
[1766688495113,0.05672,88341.0,88326.0,0.0313295]
[1766688497410,0.05672,88341.0,88328.0,0.0113292]
[1766688499612,0.05672,88342.0,88328.0,0.0113292]
[1766688499805,0.0680476,88342.0,88327.0,0.0113294]
[1766688502108,0.05672,88342.0,88329.0,0.0113291]
[1766688502513,0.05672,88342.0,88326.0,0.0113295]
[1766688502816,0.0113276,88341.0,88326.0,0.0113295]
[1766688505417,0.0113287,88333.0,88321.0,0.09632]
[1766688505617,0.0113288,88332.0,88321.0,0.12632]
[1766688505920,0.0113285,88335.0,88321.0,0.12632]
[1766688506119,0.0113285,88335.0,88321.0,0.1376502]